[Event "Marienbad B2-IM 2024"]
[Site "Marianske Lazne"]
[Date "2024.01.13"]
[Round "1.16"]
[White "Lima, Darcy"]
[Black "Wang, Yukun"]
[Result "0-1"]
[ECO "D02"]
[WhiteElo "2370"]
[BlackElo "2117"]
[Annotator "ChessBase"]
[PlyCount "104"]
[EventDate "2024.01.10"]
[EventType "tourn"]
[EventCountry "CZE"]
[SourceTitle "playchess.com"]
[Source "ChessBase"]
[SourceQuality "1"]
[TimeControl "40/5400+30:1800+30"]

1. d4 {[%emt 0:00:21]} d5 {[%emt 0:00:14]} 2. Nf3 {[%emt 0:00:13]} Nf6 {[%emt 0:00:11]} 3. g3 {[%emt 0:00:46]} Bf5 {[%emt 0:01:49]} 4. Bg2 {[%emt 0:00:09]} e6 {[%emt 0:00:34]} 5. O-O {[%emt 0:00:07]} c6 {[%emt 0:00:56]} 6. c4 {[%emt 0:01:13]} Nbd7 {[%emt 0:02:18]} 7. Nc3 {[%emt 0:02:07]} h6 {[%emt 0:01:04]} 8. Nd2 {[%emt 0:00:33]} Be7 {[%emt 0:04:33]} 9. e4 {[%emt 0:02:15]} dxe4 {[%emt 0:00:28]} 10. Ndxe4 {[%emt 0:00:06]} O-O {[%emt 0:03:38]} 11. Be3 {[%emt 0:04:25]} Nxe4 {[%emt 0:03:38]} 12. Nxe4 {[%emt 0:00:03]} Nf6 {[%emt 0:00:10]} 13. Nc3 {[%emt 0:00:06]} Qb6 {[%emt 0:09:48]} 14. Qe2 {[%emt 0:06:38]} Rad8 {[%emt 0:11:16]} 15. h3 {[%emt 0:00:56]} Qc7 {[%emt 0:03:33]} 16. Rfe1 {[%emt 0:06:05]} Rfe8 {[%emt 0:02:22]} 17. Rad1 {[%emt 0:00:57]} Bf8 {[%emt 0:02:08]} 18. g4 {[%emt 0:09:05]} Bg6 {[%emt 0:01:04]} 19. f4 {[%emt 0:00:28]} Bb4 {[%emt 0:04:27]} 20. a3 {[%emt 0:04:39]} Bxc3 {[%emt 0:02:04]} 21. bxc3 {[%emt 0:00:02]} b5 {[%emt 0:00:17]} 22. Rf1 {[%emt 0:04:57]} Ne4 {[%emt 0:00:52]} 23. Bxe4 {[%emt 0:00:15]} Bxe4 {[%emt 0:00:08]} 24. c5 {[%emt 0:00:18]} Qa5 {[%emt 0:09:26]} 25. Bc1 {[%emt 0:01:01]} f5 {[%emt 0:07:25]} 26. Qe3 {[%emt 0:00:13]} Qa4 {[%emt 0:00:22]} 27. Kh2 {[%emt 0:03:16]} a5 {[%emt 0:01:57]} 28. Rg1 {[%emt 0:01:31]} Rd7 {[%emt 0:00:14]} 29. Rd2 {[%emt 0:06:17]} Qb3 {[%emt 0:01:46]} 30. Qg3 {[%emt 0:05:05]} Qc4 {[%emt 0:02:36]} 31. Bb2 {[%emt 0:01:13]} Qxc5 {[%emt 0:01:17]} 32. gxf5 {[%emt 0:00:46]} Qxf5 {[%emt 0:00:37]} 33. Re2 {[%emt 0:00:43]} Rf8 {[%emt 0:01:20]} 34. Bc1 {[%emt 0:00:04]} Kh7 {[%emt 0:01:03]} 35. Qe1 {[%emt 0:00:14]} Bd5 {[%emt 0:00:32]} 36. Re5 {[%emt 0:00:25]} Qd3 {[%emt 0:00:49]} 37. Rg3 {[%emt 0:00:45]} Qb1 {[%emt 0:00:43]} 38. h4 {[%emt 0:04:57]} Rdf7 {[%emt 0:01:07]} 39. Re2 {[%emt 0:01:53]} Rf5 {[%emt 0:04:08]} 40. Qg1 {[%emt 0:00:03]} R8f7 {[%emt 0:00:15]} 41. Qe1 {[%emt 0:31:48]} Rh5 {[%emt 0:32:16]} 42. Rg1 {[%emt 0:00:02]} Qd3 {[%emt 0:06:07]} 43. Re3 {[%emt 0:01:57]} Qc2+ {[%emt 0:00:17]} 44. Re2 {[%emt 0:00:01]} Qb1 {[%emt 0:00:57]} 45. Qg3 {[%emt 0:00:29]} Qf5 {[%emt 0:01:53]} 46. Re5 {[%emt 0:00:36]} Qc2+ {[%emt 0:00:07]} 47. Kh3 {[%emt 0:00:04]} g5 {[%emt 0:02:01]} 48. fxg5 {[%emt 0:01:37]} Rf3 {[%emt 0:00:14]} 49. g6+ {[%emt 0:00:11]} Kg7 {[%emt 0:00:34]} 50. Rxh5 {[%emt 0:00:15]} Rxg3+ {[%emt 0:00:05]} 51. Kxg3 {[%emt 0:00:02]} Qd3+ {[%emt 0:00:17]} 52. Kf4 {[%emt 0:02:04]} Qe4+ {[%emt 0:00:13]} 0-1

[Event "Marienbad B2-IM 2024"]
[Site "Marianske Lazne"]
[Date "2024.01.13"]
[Round "1.17"]
[White "Kejna, Piotr"]
[Black "Ivanov, Mike"]
[Result "1-0"]
[ECO "C01"]
[WhiteElo "2269"]
[BlackElo "2356"]
[Annotator "ChessBase"]
[PlyCount "67"]
[EventDate "2024.01.10"]
[EventType "tourn"]
[EventCountry "CZE"]
[SourceTitle "playchess.com"]
[Source "ChessBase"]
[SourceQuality "1"]
[TimeControl "40/5400+30:1800+30"]

1. e4 {[%emt 0:00:01]} e6 {[%emt 0:00:06]} 2. d4 {[%emt 0:00:05]} d5 {[%emt 0:00:05]} 3. exd5 {[%emt 0:00:06]} exd5 {[%emt 0:00:09]} 4. c4 {[%emt 0:00:08]} Nf6 {[%emt 0:02:37]} 5. Nc3 {[%emt 0:00:08]} Bb4 {[%emt 0:02:34]} 6. Bd3 {[%emt 0:00:10]} O-O {[%emt 0:00:50]} 7. Nge2 {[%emt 0:00:33]} dxc4 {[%emt 0:16:00]} 8. Bxc4 {[%emt 0:00:02]} Bf5 {[%emt 0:00:11]} 9. O-O {[%emt 0:02:13]} Nc6 {[%emt 0:10:39]} 10. Bg5 {[%emt 0:05:08]} h6 {[%emt 0:00:51]} 11. Be3 {[%emt 0:14:18]} a6 {[%emt 0:06:22]} 12. Ng3 {[%emt 0:09:15]} Bg6 {[%emt 0:01:29]} 13. Qf3 {[%emt 0:10:34]} Na5 {[%emt 0:12:48]} 14. Be2 {[%emt 0:00:53]} Bxc3 {[%emt 0:02:18]} 15. bxc3 {[%emt 0:00:06]} Qd5 {[%emt 0:02:13]} 16. c4 {[%emt 0:15:41]} Qxf3 {[%emt 0:00:37]} 17. Bxf3 {[%emt 0:01:31]} Nxc4 {[%emt 0:20:15]} 18. Bxb7 {[%emt 0:00:02]} Ra7 {[%emt 0:00:54]} 19. Bc6 {[%emt 0:03:39]} Rd8 {[%emt 0:01:02]} 20. Rac1 {[%emt 0:02:36]} Nxe3 {[%emt 0:01:15]} 21. fxe3 {[%emt 0:00:01]} Nd5 {[%emt 0:01:45]} 22. Rfe1 {[%emt 0:19:47]} Nb4 {[%emt 0:05:27]} 23. Rc4 {[%emt 0:01:20]} Rb8 {[%emt 0:00:53]} 24. a4 {[%emt 0:03:39]} Nd3 {[%emt 0:05:49]} 25. Ra1 {[%emt 0:01:55]} Rb4 {[%emt 0:00:49]} 26. Rc3 {[%emt 0:01:29]} Nb2 {[%emt 0:00:20]} 27. a5 {[%emt 0:01:30]} Kf8 {[%emt 0:01:18]} 28. Ne4 {[%emt 0:02:33]} Rc4 {[%emt 0:02:11]} 29. Rxc4 {[%emt 0:00:15]} Nxc4 {[%emt 0:00:01]} 30. Nc5 {[%emt 0:01:15]} Nxe3 {[%emt 0:00:53]} 31. Re1 {[%emt 0:00:46]} Ke7 {[%emt 0:00:13]} 32. Rxe3+ {[%emt 0:00:16]} Kd6 {[%emt 0:00:01]} 33. Bb7 {[%emt 0:00:32]} f6 {[%emt 0:00:18]} 34. Re6# {[%emt 0:00:04]} 1-0

[Event "Marienbad B2-IM 2024"]
[Site "Marianske Lazne"]
[Date "2024.01.13"]
[Round "1.18"]
[White "Lim, Zhuo Ren"]
[Black "Pisk, Petr"]
[Result "1/2-1/2"]
[ECO "D15"]
[WhiteElo "2218"]
[BlackElo "2295"]
[Annotator "ChessBase"]
[PlyCount "44"]
[EventDate "2024.01.10"]
[EventType "tourn"]
[EventCountry "CZE"]
[SourceTitle "playchess.com"]
[Source "ChessBase"]
[SourceQuality "1"]
[TimeControl "40/5400+30:1800+30"]

1. Nf3 {[%emt 0:00:08]} d5 {[%emt 0:00:41]} 2. d4 {[%emt 0:00:20]} Nf6 {[%emt 0:01:15]} 3. c4 {[%emt 0:00:30]} c6 {[%emt 0:01:07]} 4. Nc3 {[%emt 0:00:38]} a6 {[%emt 0:01:21]} 5. g3 {[%emt 0:03:04]} Bf5 {[%emt 0:04:19]} 6. Nh4 {[%emt 0:00:59]} Be4 {[%emt 0:04:32]} 7. f3 {[%emt 0:08:33]} Bg6 {[%emt 0:01:23]} 8. Qb3 {[%emt 0:01:51]} Ra7 {[%emt 0:07:03]} 9. Nxg6 {[%emt 0:02:33]} hxg6 {[%emt 0:00:29]} 10. c5 {[%emt 0:06:17]} Nbd7 {[%emt 0:05:35]} 11. Na4 {[%emt 0:00:33]} e5 {[%emt 0:06:15]} 12. e3 {[%emt 0:04:54]} Nh5 {[%emt 0:08:10]} 13. Bg2 {[%emt 0:00:47]} Be7 {[%emt 0:03:37]} 14. O-O {[%emt 0:01:16]} Nhf6 {[%emt 0:07:44]} 15. Bd2 {[%emt 0:06:31]} O-O {[%emt 0:02:57]} 16. Bc3 {[%emt 0:02:11]} exd4 {[%emt 0:16:00]} 17. exd4 {[%emt 0:01:08]} Ne8 {[%emt 0:02:05]} 18. Bh3 {[%emt 0:06:46]} f5 {[%emt 0:02:56]} 19. Rae1 {[%emt 0:00:44]} Bf6 {[%emt 0:00:51]} 20. g4 {[%emt 0:04:15]} Nc7 {[%emt 0:04:12]} 21. Nb6 {[%emt 0:04:40]} Nb5 {[%emt 0:01:01]} 22. Nxd7 {[%emt 0:03:11]} Qxd7 {[%emt 0:01:20]} 1/2-1/2

[Event "Marienbad B2-IM 2024"]
[Site "Marianske Lazne"]
[Date "2024.01.13"]
[Round "1.19"]
[White "Plischki, Sebastian"]
[Black "Balinski, Damian"]
[Result "1/2-1/2"]
[ECO "D12"]
[WhiteElo "2345"]
[BlackElo "2226"]
[Annotator "ChessBase"]
[PlyCount "75"]
[EventDate "2024.01.10"]
[EventType "tourn"]
[EventCountry "CZE"]
[SourceTitle "playchess.com"]
[Source "ChessBase"]
[SourceQuality "1"]
[TimeControl "40/5400+30:1800+30"]

1. d4 {[%emt 0:00:02]} d5 {[%emt 0:00:02]} 2. c4 {[%emt 0:00:40]} c6 {[%emt 0:00:03]} 3. Nf3 {[%emt 0:00:12]} Nf6 {[%emt 0:00:03]} 4. e3 {[%emt 0:00:21]} Bf5 {[%emt 0:00:28]} 5. Nc3 {[%emt 0:00:23]} a6 {[%emt 0:00:10]} 6. Bd2 {[%emt 0:00:24]} e6 {[%emt 0:05:02]} 7. Nh4 {[%emt 0:05:13]} Bg4 {[%emt 0:05:47]} 8. Qb3 {[%emt 0:01:27]} b5 {[%emt 0:02:51]} 9. cxd5 {[%emt 0:05:23]} cxd5 {[%emt 0:01:29]} 10. h3 {[%emt 0:00:46]} Bh5 {[%emt 0:03:23]} 11. g4 {[%emt 0:03:20]} Bg6 {[%emt 0:00:02]} 12. Rc1 {[%emt 0:03:09]} Ne4 {[%emt 0:13:27]} 13. Nxg6 {[%emt 0:10:40]} Nxd2 {[%emt 0:00:03]} 14. Kxd2 {[%emt 0:03:06]} hxg6 {[%emt 0:00:09]} 15. Bg2 {[%emt 0:01:45]} Nd7 {[%emt 0:03:18]} 16. Nxd5 {[%emt 0:05:11]} exd5 {[%emt 0:09:05]} 17. Bxd5 {[%emt 0:00:07]} Bd6 {[%emt 0:04:46]} 18. Rc6 {[%emt 0:08:31]} Ke7 {[%emt 0:05:38]} 19. Bxf7 {[%emt 0:07:03]} Nf8 {[%emt 0:00:28]} 20. Rhc1 {[%emt 0:08:58]} Rxh3 {[%emt 0:17:52]} 21. Bd5 {[%emt 0:09:39]} Ra7 {[%emt 0:11:40]} 22. Ke2 {[%emt 0:05:55]} Qd7 {[%emt 0:01:31]} 23. Bf3 {[%emt 0:01:48]} Qe6 {[%emt 0:04:12]} 24. Qc2 {[%emt 0:02:49]} Nd7 {[%emt 0:02:04]} 25. b3 {[%emt 0:02:51]} Kf7 {[%emt 0:03:51]} 26. Qe4 {[%emt 0:05:12]} Nf8 {[%emt 0:05:17]} 27. Qd5 {[%emt 0:06:53]} Qxd5 {[%emt 0:00:24]} 28. Bxd5+ {[%emt 0:00:04]} Ke7 {[%emt 0:00:02]} 29. Rh1 {[%emt 0:01:14]} Rxh1 {[%emt 0:00:13]} 30. Bxh1 {[%emt 0:00:04]} Ne6 {[%emt 0:01:07]} 31. Kd3 {[%emt 0:01:15]} Nd8 {[%emt 0:00:35]} 32. Rc2 {[%emt 0:00:50]} Rc7 {[%emt 0:00:31]} 33. Rxc7+ {[%emt 0:00:16]} Bxc7 {[%emt 0:00:01]} 34. g5 {[%emt 0:00:11]} Ne6 {[%emt 0:00:55]} 35. f4 {[%emt 0:00:39]} a5 {[%emt 0:00:47]} 36. Bc6 {[%emt 0:01:10]} b4 {[%emt 0:00:24]} 37. Be4 {[%emt 0:00:09]} Nxf4+ {[%emt 0:00:36]} 38. exf4 {[%emt 0:00:13]} 1/2-1/2

[Event "Marienbad B2-IM 2024"]
[Site "Marianske Lazne"]
[Date "2024.01.13"]
[Round "1.20"]
[White "Luberanski, Jakub"]
[Black "Pavlis, Matej"]
[Result "1-0"]
[ECO "B12"]
[WhiteElo "2278"]
[BlackElo "2088"]
[Annotator "ChessBase"]
[PlyCount "77"]
[EventDate "2024.01.10"]
[EventType "tourn"]
[EventCountry "CZE"]
[SourceTitle "playchess.com"]
[Source "ChessBase"]
[SourceQuality "1"]
[TimeControl "40/5400+30:1800+30"]

1. e4 {[%emt 0:00:03]} c6 {[%emt 0:00:12]} 2. d4 {[%emt 0:00:05]} d5 {[%emt 0:00:05]} 3. e5 {[%emt 0:00:06]} c5 {[%emt 0:00:34]} 4. c3 {[%emt 0:00:30]} Nc6 {[%emt 0:01:04]} 5. Be2 {[%emt 0:00:05]} Bf5 {[%emt 0:01:26]} 6. Nf3 {[%emt 0:00:25]} e6 {[%emt 0:01:06]} 7. O-O {[%emt 0:00:10]} Qb6 {[%emt 0:06:09]} 8. dxc5 {[%emt 0:03:52]} Bxc5 {[%emt 0:02:22]} 9. b4 {[%emt 0:00:05]} Be7 {[%emt 0:02:08]} 10. Be3 {[%emt 0:00:08]} Qc7 {[%emt 0:00:46]} 11. b5 {[%emt 0:04:22]} Na5 {[%emt 0:05:36]} 12. Qa4 {[%emt 0:10:18]} b6 {[%emt 0:02:36]} 13. c4 {[%emt 0:02:11]} dxc4 {[%emt 0:12:31]} 14. Rc1 {[%emt 0:00:21]} Bc5 {[%emt 0:00:17]} 15. Bxc5 {[%emt 0:16:30]} Qxc5 {[%emt 0:00:08]} 16. Bxc4 {[%emt 0:22:42]} Bxb1 {[%emt 0:03:03]} 17. Raxb1 {[%emt 0:00:06]} Rc8 {[%emt 0:05:22]} 18. Bf1 {[%emt 0:03:17]} Qxc1 {[%emt 0:00:25]} 19. Rxc1 {[%emt 0:00:07]} Rxc1 {[%emt 0:00:07]} 20. Qg4 {[%emt 0:01:41]} g6 {[%emt 0:03:49]} 21. Qf4 {[%emt 0:01:28]} Rc7 {[%emt 0:03:58]} 22. Ng5 {[%emt 0:01:39]} Nb7 {[%emt 0:18:29]} 23. Ne4 {[%emt 0:05:31]} h5 {[%emt 0:12:03]} 24. g3 {[%emt 0:05:07]} Nh6 {[%emt 0:04:02]} 25. Nd6+ {[%emt 0:02:07]} Kf8 {[%emt 0:10:35]} 26. Bg2 {[%emt 0:01:50]} Na5 {[%emt 0:00:10]} 27. Qf6 {[%emt 0:01:54]} Rc1+ {[%emt 0:00:18]} 28. Bf1 {[%emt 0:00:04]} Kg8 {[%emt 0:02:52]} 29. Kg2 {[%emt 0:00:18]} Rc2 {[%emt 0:01:31]} 30. Bd3 {[%emt 0:00:21]} Rc5 {[%emt 0:01:03]} 31. Bxg6 {[%emt 0:04:18]} fxg6 {[%emt 0:00:09]} 32. Qxg6+ {[%emt 0:00:15]} Kf8 {[%emt 0:00:06]} 33. Qf6+ {[%emt 0:00:09]} Kg8 {[%emt 0:00:04]} 34. Qxe6+ {[%emt 0:00:38]} Kh7 {[%emt 0:01:19]} 35. Qe7+ {[%emt 0:00:05]} Kg6 {[%emt 0:00:45]} 36. Ne4 {[%emt 0:00:22]} Rhc8 {[%emt 0:00:42]} 37. Qg5+ {[%emt 0:01:27]} Kf7 {[%emt 0:00:16]} 38. Nxc5 {[%emt 0:00:05]} Rxc5 {[%emt 0:00:03]} 39. Qf6+ {[%emt 0:00:08]} 1-0

[Event "Marienbad B2-IM 2024"]
[Site "Marianske Lazne"]
[Date "2024.01.14"]
[Round "2.16"]
[White "Wang, Yukun"]
[Black "Pavlis, Matej"]
[Result "1-0"]
[ECO "B90"]
[WhiteElo "2117"]
[BlackElo "2088"]
[Annotator "TA"]
[PlyCount "69"]
[EventDate "2024.01.10"]
[EventType "tourn"]
[EventCountry "CZE"]
[SourceTitle "playchess.com"]
[Source "ChessBase"]
[SourceQuality "1"]
[TimeControl "40/5400+30:1800+30"]

{[%evp 18,69,28,35,35,4,0,0,0,0,2,-68,-91,-75,0,-33,-8,-9,-8,-8,-1,-3,-22,-17,-16,-66,62,63,116,114,108,-86,-17,-182,56,45,67,53,123,146,144,116,112,36,175,162,165,150,168,162,1035,1135,4898,2568]} 1. e4 {[%emt 0:00:09]} c5 {[%emt 0:00:06]} 2. Nf3 {[%emt 0:00:37]} d6 {[%emt 0:00:05]} 3. d4 {[%emt 0:00:06]} cxd4 {[%emt 0:00:05]} 4. Nxd4 {[%emt 0:00:03]} Nf6 {[%emt 0:00:10]} 5. Nc3 {[%emt 0:00:04]} a6 {[%emt 0:00:04]} 6. Be3 {[%emt 0:00:09]} e5 {[%emt 0:00:13]} 7. Nb3 {[%emt 0:00:04]} Be6 {[%emt 0:00:14]} 8. f3 {[%emt 0:00:06]} Be7 {[%emt 0:00:06]} 9. Qd2 {[%emt 0:00:21]} h5 {[%emt 0:00:25]} 10. Be2 {[%emt 0:02:13]} O-O {[%emt 0:02:15]} 11. O-O-O {[%emt 0:03:08]} Nbd7 $1 {[%emt 0:03:07]} 12. g4 {[%emt 0:02:54]} hxg4 {[%emt 0:03:07] The position is equal.} 13. Rhg1 {[%emt 0:00:54][%cal Rf3g4]} b5 {[%emt 0:07:14] Threatens to win with ...b4.} 14. Nd5 {[%emt 0:04:44]} (14. h3 $11) 14... Bxd5 $1 $15 {[%emt 0:06:23]} 15. exd5 {[%emt 0:00:09]} Nb6 {[%emt 0:01:26]} (15... a5 $1 $17 {White must now prevent ...a4.} 16. Qd3 a4) 16. fxg4 {[%emt 0:03:56][%cal Bf3g4,Bg4g5][%mdl 32]} (16. Bh6 $5) 16... Nfxd5 {[%emt 0:10:00]} (16... Nbxd5 $2 17. g5 $18) 17. g5 $1 {[%emt 0:01:50]} Nxe3 {[%emt 0:09:23]} 18. Qxe3 {[%emt 0:00:05]} Nc4 $36 {[%emt 0:06:09][%mdl 2048] Black has some pressure.} 19. Bxc4 {[%emt 0:03:20]} bxc4 {[%emt 0:00:11]} 20. Nd2 {[%emt 0:00:13]} Rc8 {[%emt 0:05:08][%cal Oc4c3] And now ...c3! would win.} 21. Ne4 {[%emt 0:01:11]} (21. g6 $11 c3 22. bxc3) 21... Rc6 {[%emt 0:09:07]} (21... d5 $15 22. Qg3 Rc6) 22. Qf3 {[%emt 0:02:05][%cal Oe4f6] Nf6+! is the strong threat. White has more active pieces.} d5 {[%emt 0:07:00] [#]} (22... Rb6 $1 $14) 23. Rxd5 $3 $16 {[%emt 0:00:26][%mdl 512]} Qb6 {[%emt 0:00:03]} (23... Qxd5 $2 24. Nf6+ Rxf6 25. Qxd5 $18) (23... Qc8 24. Rgd1) 24. Rf1 {[%emt 0:04:09] [#]} (24. Rg2 $16 {stays on course.}) 24... c3 {[%emt 0:02:12]} (24... Bxg5+ $1 $17 25. Nxg5 Rf6) 25. bxc3 $2 {[%emt 0:09:46] [#]} (25. Rxe5 Qxb2+ 26. Kd1 Re6 27. Rxe6 fxe6 28. Qxc3 Qb1+ (28... Rxf1+ $2 29. Ke2 $19) 29. Kd2 Qxf1 $19 (29... Rxf1 $2 30. Qc8+ Kh7 31. g6+ Kh6 32. Qh8+ Kxg6 33. Qe8+ Rf7 34. h4 $19)) (25. Nxc3 $11 Bxg5+ 26. Kb1) 25... Qc7 $2 {[%emt 0:09:22]} (25... Bxg5+ $1 $19 26. Nxg5 Rf6) 26. Qd3 $14 {[%emt 0:04:27]} Rc8 {[%emt 0:06:56]} 27. Kd2 {[%emt 0:04:44]} (27. h4 {with more complications.} Qb6 28. Qf3 Rf8 29. Rd7) 27... Re6 {[%emt 0:06:46]} (27... Rc4 $14) 28. h4 $16 {[%emt 0:00:26]} Qc6 {[%emt 0:02:10]} 29. h5 {[%emt 0:02:40]} Qa4 {[%emt 0:01:01] [#]} 30. h6 {[%emt 0:09:25]} Rg6 {[%emt 0:03:48]} (30... gxh6 $14 31. gxh6 Rxh6) 31. h7+ {[%emt 0:00:30]} Kh8 {[%emt 0:00:09]} 32. Rxf7 {[%emt 0:00:13]} (32. Rxe5 Rd8 33. Rd5 Ra8) 32... Qe8 {[%emt 0:01:01]} 33. Rf5 {[%emt 0:00:23]} Kxh7 $2 {[%emt 0:00:54]} (33... Rgc6 34. Rfxe5 (34. Rdxe5 Qg6 $18) 34... Qf8) 34. Rfxe5 $18 {[%emt 0:00:16]} Qf7 {[%emt 0:00:35]} 35. Qh3+ {[%emt 0:00:10] Weighted Error Value: White=0.37/Black=0.37.  Loses game:     	White=1     	---        Missed win:     	---       	Black=1      Mistake:       	White=4     	Black=7      Inaccurate:     	White=2     	Black=1      OK:         	White=8     	Black=6      Best:        	White=2     	Black=2      Strong:       	White=1     	Black=2      Brilliant:      	White=1     	---} 1-0

[Event "Marienbad B2-IM 2024"]
[Site "Marianske Lazne"]
[Date "2024.01.14"]
[Round "2.17"]
[White "Balinski, Damian"]
[Black "Luberanski, Jakub"]
[Result "1/2-1/2"]
[ECO "D45"]
[WhiteElo "2226"]
[BlackElo "2278"]
[Annotator "ChessBase"]
[PlyCount "54"]
[EventDate "2024.01.10"]
[EventType "tourn"]
[EventCountry "CZE"]
[SourceTitle "playchess.com"]
[Source "ChessBase"]
[SourceQuality "1"]
[TimeControl "40/5400+30:1800+30"]

1. c4 {[%emt 0:00:04]} e6 {[%emt 0:00:14]} 2. Nc3 {[%emt 0:00:15]} d5 {[%emt 0:00:03]} 3. d4 {[%emt 0:00:23]} c6 {[%emt 0:00:04]} 4. e3 {[%emt 0:00:33]} Nf6 {[%emt 0:00:05]} 5. Nf3 {[%emt 0:00:08]} Nbd7 {[%emt 0:00:04]} 6. Qc2 {[%emt 0:00:22]} Bd6 {[%emt 0:00:08]} 7. Bd3 {[%emt 0:00:05]} O-O {[%emt 0:00:07]} 8. O-O {[%emt 0:00:04]} dxc4 {[%emt 0:00:04]} 9. Bxc4 {[%emt 0:00:02]} b5 {[%emt 0:00:06]} 10. Be2 {[%emt 0:00:11]} Bb7 {[%emt 0:00:05]} 11. Rd1 {[%emt 0:00:10]} Qc7 {[%emt 0:01:56]} 12. e4 {[%emt 0:00:17]} e5 {[%emt 0:00:33]} 13. Bg5 {[%emt 0:00:12]} exd4 {[%emt 0:08:03]} 14. Rxd4 {[%emt 0:00:04]} Ne5 {[%emt 0:02:10]} 15. Bxf6 {[%emt 0:09:45]} gxf6 {[%emt 0:00:20]} 16. g3 {[%emt 0:47:56]} Nxf3+ {[%emt 0:15:39]} 17. Bxf3 {[%emt 0:00:03]} Be5 {[%emt 0:02:35]} 18. Rd2 {[%emt 0:01:09]} Rad8 {[%emt 0:01:40]} 19. Rad1 {[%emt 0:00:37]} Bc8 {[%emt 0:03:54]} 20. Kg2 {[%emt 0:07:12]} Qa5 {[%emt 0:18:15]} 21. Rxd8 {[%emt 0:08:28]} Rxd8 {[%emt 0:01:04]} 22. Rxd8+ {[%emt 0:00:02]} Qxd8 {[%emt 0:00:14]} 23. Nd1 {[%emt 0:00:04]} Qd6 {[%emt 0:13:23]} 24. Ne3 {[%emt 0:00:03]} c5 {[%emt 0:01:42]} 25. b3 {[%emt 0:02:48]} Bd4 {[%emt 0:01:13]} 26. Bg4 {[%emt 0:05:47]} Bxe3 {[%emt 0:03:24]} 27. Bxc8 {[%emt 0:00:07]} Qd2 {[%emt 0:00:04]} 1/2-1/2

[Event "Marienbad B2-IM 2024"]
[Site "Marianske Lazne"]
[Date "2024.01.14"]
[Round "2.19"]
[White "Ivanov, Mike"]
[Black "Lim, Zhuo Ren"]
[Result "1/2-1/2"]
[ECO "B53"]
[WhiteElo "2356"]
[BlackElo "2218"]
[Annotator "RC"]
[PlyCount "147"]
[EventDate "2024.01.10"]
[EventType "tourn"]
[EventCountry "CZE"]
[SourceTitle "playchess.com"]
[Source "ChessBase"]
[SourceQuality "1"]
[TimeControl "40/5400+30:1800+30"]

1. e4 {[%emt 0:00:02]} c5 {[%emt 0:00:38]} 2. Nf3 {[%emt 0:00:12]} d6 {[%emt 0:00:21]} 3. d4 {[%emt 0:00:12]} cxd4 4. Qxd4 {[%emt 0:00:06]} Nc6 {[%emt 0:00:35]} 5. Bb5 {[%emt 0:00:12]} Bd7 {[%emt 0:00:15]} 6. Qe3 {[%emt 0:00:07]} Qa5+ {[%emt 0:04:42]} 7. Nc3 {[%emt 0:00:27]} Nf6 {[%emt 0:00:17]} 8. O-O {[%emt 0:00:58]} e6 {[%emt 0:01:44]} 9. Qg5 {[%emt 0:10:38]} h6 {[%emt 0:04:39]} 10. Qg3 {[%emt 0:00:08]} a6 {[%emt 0:00:33]} 11. Bxc6 {[%emt 0:01:48]} Bxc6 {[%emt 0:00:15]} 12. e5 {[%emt 0:00:38]} Nh5 {[%emt 0:04:37]} 13. Qg4 {[%emt 0:01:28]} g6 {[%emt 0:00:16]} 14. Re1 {[%emt 0:08:37]} d5 {[%emt 0:05:36]} 15. Nd4 {[%emt 0:01:48]} Ng7 {[%emt 0:00:44]} 16. Be3 {[%emt 0:05:45]} h5 {[%emt 0:12:11]} 17. Qh4 {[%emt 0:07:03]} Nf5 {[%emt 0:04:00]} 18. Nxf5 {[%emt 0:00:31]} gxf5 {[%emt 0:00:07]} 19. Ne2 {[%emt 0:02:39]} Qb4 {[%emt 0:04:24]} 20. Bd4 {[%emt 0:08:54]} Bb5 {[%emt 0:03:21]} 21. c3 {[%emt 0:05:22]} Qe7 {[%emt 0:00:15]} 22. Qh3 {[%emt 0:00:06]} Qg5 {[%emt 0:03:16]} 23. Be3 {[%emt 0:11:01]} Qg4 {[%emt 0:00:22]} 24. Nf4 {[%emt 0:00:05]} Be7 {[%emt 0:02:18]} 25. Rad1 {[%emt 0:04:17]} Rc8 {[%emt 0:00:37]} 26. Rd4 {[%emt 0:07:35]} Rc4 {[%emt 0:05:26]} 27. Rxc4 {[%emt 0:02:05]} Bxc4 {[%emt 0:00:09]} 28. b3 {[%emt 0:00:43]} Bb5 {[%emt 0:00:07]} 29. f3 {[%emt 0:05:16]} Qxh3 {[%emt 0:00:09]} 30. Nxh3 {[%emt 0:00:08]} h4 {[%emt 0:03:15]} 31. Nf4 {[%emt 0:02:07]} Rg8 {[%emt 0:02:50]} 32. Kf2 {[%emt 0:00:34]} Kd7 {[%emt 0:01:31]} 33. Rd1 {[%emt 0:01:26]} Bg5 {[%emt 0:01:11]} 34. Nxd5 {[%emt 0:06:20]} exd5 {[%emt 0:00:13]} 35. Bxg5 {[%emt 0:00:09]} Rxg5 {[%emt 0:00:07]} 36. c4 {[%emt 0:00:03]} Bxc4 {[%emt 0:24:35]} 37. bxc4 {[%emt 0:00:07]} f4 {[%emt 0:00:18]} 38. Rxd5+ {[%emt 0:04:18]} Ke6 {[%emt 0:00:04]} 39. Rd6+ {[%emt 0:02:38]} Kxe5 {[%emt 0:00:14]} 40. Rh6 {[%emt 0:02:16]} Rg6 {[%emt 0:01:28]} 41. Rxh4 {[%emt 0:03:19]} Rc6 {[%emt 0:04:53]} 42. Rh5+ {[%emt 0:04:07]} f5 {[%emt 0:00:16]} 43. g4 {[%emt 0:00:48]} fxg3+ {[%emt 0:00:05]} 44. hxg3 {[%emt 0:00:22]} Rxc4 {[%emt 0:00:21]} 45. g4 {[%emt 0:00:09]} Rc2+ {[%emt 0:05:13]} 46. Kg3 {[%emt 0:07:07]} Rxa2 {[%emt 0:00:04]} 47. Rxf5+ {[%emt 0:00:06]} Ke6 {[%emt 0:00:02]} 48. Rf8 {[%emt 0:02:17]} a5 {[%emt 0:00:20]} 49. g5 {[%emt 0:01:26]} Ra1 {[%emt 0:03:02]} 50. Rf6+ {[%emt 0:01:15]} Ke5 {[%emt 0:00:37]} 51. f4+ {[%emt 0:01:07]} Ke4 {[%emt 0:00:09]} 52. Re6+ {[%emt 0:01:28]} Kf5 {[%emt 0:00:05]} 53. Rf6+ {[%emt 0:00:34]} Ke4 {[%emt 0:00:03]} 54. Re6+ {[%emt 0:00:04]} Kf5 {[%emt 0:00:08]} 55. Re5+ {[%emt 0:00:08]} Kg6 {[%emt 0:00:02]} 56. Rb5 {[%emt 0:00:20]} a4 {[%emt 0:00:19]} 57. Rxb7 {[%emt 0:03:38]} a3 {[%emt 0:00:17]} 58. Rb6+ {[%emt 0:03:49]} Kf5 {[%emt 0:00:08]} 59. Rb5+ {[%emt 0:00:10]} Kg6 {[%emt 0:03:31]} 60. Ra5 {[%emt 0:00:29]} a2 {[%emt 0:00:13]} 61. Kg2 {[%emt 0:00:35]} Kh5 {[%emt 0:07:10]} 62. Ra6 {[%emt 0:00:51]} Kg4 {[%emt 0:01:45]} 63. g6 {[%emt 0:01:23]} Rb1 {[%emt 0:01:31]} 64. Rxa2 {[%emt 0:04:41]} Rb7 {[%emt 0:01:08]} 65. Ra4 {[%emt 0:02:16]} Rg7 {[%emt 0:00:37]} 66. Kf2 {[%emt 0:00:21]} Rxg6 {[%emt 0:00:20]} 67. Ke3 {[%emt 0:00:10]} Kf5 {[%emt 0:00:48]} 68. Ra5+ {[%emt 0:00:18]} Kf6 {[%emt 0:00:03]} 69. Ke4 {[%emt 0:00:21]} Kf7 {[%emt 0:00:17]} 70. Ra7+ {[%emt 0:00:54]} Kf8 {[%emt 0:00:11]} 71. Ke5 {[%emt 0:00:11]} Rb6 {[%emt 0:00:14]} 72. f5 {[%emt 0:00:07]} Rc6 {[%emt 0:00:08]} 73. f6 {[%emt 0:00:08]} Rc1 {[%emt 0:00:23]} 74. Ke4 1/2-1/2